Cogmind - Beta 12 @@@ ROGUE MODE // 2023.04.10 @ 11:22:15 Player: Mr Goldstein Result: Destroyed by H-66 Slayer with Gauss Rifle Performance ------------- Evolutions (4) 2000 Regions Visited (8) 1600 Robots Destroyed (1) 5 Value Destroyed (10) 10 Prototype IDs (0) 0 Alien Tech Used (0) 0 Bonus (500) 500 TOTAL SCORE: 4115 Bonus ------- Entered DSFs 500 Cogmind --------- Core Integrity 0/850 Matter 189/300 Energy 99/100 System Corruption 9% Temperature Cool (0) Movement Core (50) Location -6/Factory Parts ------- > --- POWER (1) -------- (None) > --- PROPULSION (2) --- (None) > --- UTILITY (10) ----- (None) > --- WEAPON (2) ------- (None) > --- INVENTORY (5) ---- (None) Peak State ------------ None Favorites ----------- Power None Propulsion None Utility None Weapon None Build | -11 -10 -9 -8 -7 -7 -6 -6 -6 ------- Run | Jun Mat Mat Mat Fac DSF Fac Was Fac Slots Evolved 8 | . . 2 2 2 . 2 . . Power . | . . . . . . . . . Propulsion . | . . . . . . . . . Utility 8 | . . 2 2 2 . 2 . . Weapon . | . . . . . . . . . Parts Attached . | . . . . . . . . . Power . | . . . . . . . . . Engine . | . . . . . . . . . Core . | . . . . . . . . . Reactor . | . . . . . . . . . Propulsion . | . . . . . . . . . Treads . | . . . . . . . . . Leg . | . . . . . . . . . Wheel . | . . . . . . . . . Hover . | . . . . . . . . . Flight . | . . . . . . . . . Utility . | . . . . . . . . . Device . | . . . . . . . . . Storage . | . . . . . . . . . Processor . | . . . . . . . . . Hackware . | . . . . . . . . . Protection . | . . . . . . . . . Artifact . | . . . . . . . . . Weapon . | . . . . . . . . . Energy Gun . | . . . . . . . . . Energy Cannon . | . . . . . . . . . Ballistic Gun . | . . . . . . . . . Ballistic Cannon . | . . . . . . . . . Launcher . | . . . . . . . . . Special Weapon . | . . . . . . . . . Impact Weapon . | . . . . . . . . . Slashing Weapon . | . . . . . . . . . Piercing Weapon . | . . . . . . . . . Special Melee Weapon . | . . . . . . . . . Unidentified Prototypes . | . . . . . . . . . Parts Lost . | . . . . . . . . . Power . | . . . . . . . . . Propulsion . | . . . . . . . . . Utility . | . . . . . . . . . Weapon . | . . . . . . . . . Highest Loss Streak . | . . . . . . . . . To Critical Strikes . | . . . . . . . . . Average Slot Usage (%) . | . . . . . . . . . Naked Turns 519 | . 48 47 82 3 15 110 33 181 Heaviest Build . | . . . . . . . . . Greatest Support 3 | 3 3 3 3 3 3 3 3 3 Greatest Overweight (x) . | . . . . . . . . . Average Overweight (x) . | . . . . . . . . . Largest Inventory Capacity 5 | 5 5 5 5 5 5 5 5 5 Average Capacity 5 | 5 5 5 5 5 5 5 5 5 Most Carried . | . . . . . . . . . Average Carried . | . . . . . . . . . Final Capacity 5 | 5 5 5 5 5 5 5 5 5 Final Carried . | . . . . . . . . . Class Distribution -------------------- 100% | Mutant Dominant Class ---------------- Mutant | -10/Materials Mutant | -9/Materials Mutant | -8/Materials Mutant | -7/Factory Mutant | -7/DSF Mutant | -6/Factory Mutant | -6/Waste Mutant | -6/Factory Resources | -11 -10 -9 -8 -7 -7 -6 -6 -6 ----------- Run | Jun Mat Mat Mat Fac DSF Fac Was Fac Matter Collected 61 | 36 20 . . . . . . 5 Remotely . | . . . . . . . . . Salvage Created 20 | . 20 . . . . . . . Parts 1 | . 1 . . . . . . . Haulers Intercepted . | . . . . . . . . . Recyclers Shooed . | . . . . . . . . . Parts Field Recycled . | . . . . . . . . . Retrieved Matter . | . . . . . . . . . Parts Self-Destructed . | . . . . . . . . . Prevented . | . . . . . . . . . Kills | -11 -10 -9 -8 -7 -7 -6 -6 -6 ------- Run | Jun Mat Mat Mat Fac DSF Fac Was Fac Combat Hostiles Destroyed 1 | . 1 . . . . . . . Melee 1 | . 1 . . . . . . . Classes Destroyed 1 | . 1 . . . . . . . Swarmer 1 | . 1 . . . . . . . Best Kill Streak 1 | . 1 . . . . . . . Combat Bots Only 1 | . 1 . . . . . . . Max Kills in Single Turn 1 | . 1 . . . . . . . Gunslinging . | . . . . . . . . . Exploded . | . . . . . . . . . Melee 1 | . 1 . . . . . . . Uniques/NPCs Destroyed . | . . . . . . . . . Combat | -11 -10 -9 -8 -7 -7 -6 -6 -6 -------- Run | Jun Mat Mat Mat Fac DSF Fac Was Fac Damage Taken 1516 | . 138 1 232 . 282 . 99 764 Core 1516 | . 138 1 232 . 282 . 99 764 Absorbed by Shields . | . . . . . . . . . Core Remaining (%) 71 | 100 44 99 57 . 59 . . . Volleys Fired . | . . . . . . . . . Largest . | . . . . . . . . . Hottest . | . . . . . . . . . Shots Fired . | . . . . . . . . . Gun . | . . . . . . . . . Cannon . | . . . . . . . . . Launcher . | . . . . . . . . . Special . | . . . . . . . . . Kinetic . | . . . . . . . . . Thermal . | . . . . . . . . . Explosive . | . . . . . . . . . Electromagnetic . | . . . . . . . . . Robot Hit Streak . | . . . . . . . . . Robot Miss Streak . | . . . . . . . . . Penetration Max . | . . . . . . . . . Secondary Targets . | . . . . . . . . . Shots Hit Robots . | . . . . . . . . . Core Hits 5 | . 4 1 . . . . . . Critical Kills . | . . . . . . . . . Critical Parts Destroyed . | . . . . . . . . . Critical Strikes . | . . . . . . . . . Melee Attacks . | . . . . . . . . . Impact . | . . . . . . . . . Slashing . | . . . . . . . . . Piercing . | . . . . . . . . . Sneak Attacks . | . . . . . . . . . Combat Hostiles . | . . . . . . . . . Follow-up Attacks . | . . . . . . . . . Damage Inflicted 24 | . 22 2 . . . . . . Guns . | . . . . . . . . . Cannons . | . . . . . . . . . Explosions . | . . . . . . . . . Melee . | . . . . . . . . . Ramming 24 | . 22 2 . . . . . . Kinetic . | . . . . . . . . . Thermal . | . . . . . . . . . Explosive . | . . . . . . . . . Electromagnetic . | . . . . . . . . . Impact . | . . . . . . . . . Slashing . | . . . . . . . . . Piercing . | . . . . . . . . . Highest Corruption 9 | . . . . . . . 5 9 Average Corruption 6 | . . . . . . . 5 6 Corruption Purged . | . . . . . . . . . Corruption Blocked . | . . . . . . . . . Effects 7 | . . . . . . . 1 6 Message Errors 3 | . . . . . . . . 3 Matter Fused 1 | . . . . . . . 1 . Energy Discharges 1 | . . . . . . . . 1 Data Loss (minor) 2 | . . . . . . . . 2 Overload Shots . | . . . . . . . . . Overflow Damage . | . . . . . . . . . Projectiles . | . . . . . . . . . Explosions . | . . . . . . . . . Melee . | . . . . . . . . . Knockbacks . | . . . . . . . . . Impact . | . . . . . . . . . Kinetic . | . . . . . . . . . Secondary . | . . . . . . . . . Self-Inflicted Damage 8 | . 7 1 . . . . . . Shots . | . . . . . . . . . Rammed 10 | . 9 1 . . . . . . Targets Rammed 10 | . 9 1 . . . . . . Kicked . | . . . . . . . . . Crushed . | . . . . . . . . . Highest Temperature . | . . . . . . . . . Average Temperature . | . . . . . . . . . Received Heat Transfer 351 | . . . 117 . . . . 234 Siege Activations . | . . . . . . . . . Robots Corrupted . | . . . . . . . . . Combat Hostiles . | . . . . . . . . . Parts Fried . | . . . . . . . . . Impact Corruptions . | . . . . . . . . . Robots Melted . | . . . . . . . . . Combat Hostiles . | . . . . . . . . . Parts Melted . | . . . . . . . . . Heat Transferred . | . . . . . . . . . Parts Sabotaged . | . . . . . . . . . Parts Stolen . | . . . . . . . . . Parts Stripped . | . . . . . . . . . Power Chain Reactions 2 | . . . . . . . . 2 Missiles Intercepted . | . . . . . . . . . Alert | -11 -10 -9 -8 -7 -7 -6 -6 -6 ------- Run | Jun Mat Mat Mat Fac DSF Fac Was Fac Peak Influence 398 | . 35 29 206 98 68 50 47 398 Initial 93 | . . 14 11 93 68 35 17 32 Average 91 | . 10 21 79 94 68 35 32 188 Maximum Alert Level 1 | . . . 1 . . . . 1 Low Security (%) 84 | 100 100 100 95 100 100 100 100 58 Level 1 15 | . . . 4 . . . . 41 Level 2 . | . . . . . . . . . Level 3 . | . . . . . . . . . Level 4 . | . . . . . . . . . Level 5 . | . . . . . . . . . High Security . | . . . . . . . . . Max Security . | . . . . . . . . . Squads Dispatched 9 | . . . 2 . 1 . . 6 Investigation 6 | . . . 1 . . . . 5 Extermination . | . . . . . . . . . Reinforcement 3 | . . . 1 . 1 . . 1 Assault . | . . . . . . . . . Garrison . | . . . . . . . . . Intercept . | . . . . . . . . . Searches Triggered . | . . . . . . . . . Construction Impeded . | . . . . . . . . . Haulers Reinforced . | . . . . . . . . . Active Scanning Responses . | . . . . . . . . . Cargo Convoy Interrupts . | . . . . . . . . . Stealth | -11 -10 -9 -8 -7 -7 -6 -6 -6 --------- Run | Jun Mat Mat Mat Fac DSF Fac Was Fac Distress Signals 2 | . . . 2 . . . . . Communications Jammed . | . . . . . . . . . Distress Signals . | . . . . . . . . . Times Spotted 55 | . 5 1 16 . 4 1 6 22 Peak Tracking Total 12 | . 4 1 10 . 5 1 6 12 Tactical Retreats 5 | . . . 2 . . . . 3 Traps | -11 -10 -9 -8 -7 -7 -6 -6 -6 ------- Run | Jun Mat Mat Mat Fac DSF Fac Was Fac Traps Triggered 5 | . 2 . 1 . . 1 . 1 Indirectly . | . . . . . . . . . Trap Hack Attempts . | . . . . . . . . . Triggered . | . . . . . . . . . Disarmed . | . . . . . . . . . Reprogrammed . | . . . . . . . . . Reused . | . . . . . . . . . Traps Extracted . | . . . . . . . . . Installed . | . . . . . . . . . Triggered . | . . . . . . . . . Machines | -11 -10 -9 -8 -7 -7 -6 -6 -6 ---------- Run | Jun Mat Mat Mat Fac DSF Fac Was Fac Machines Disabled . | . . . . . . . . . Max in Single Turn . | . . . . . . . . . Machines Repaired . | . . . . . . . . . Machines Sabotaged . | . . . . . . . . . Overloaded Fab Kills 6 | . . . . . . . . 6 Hacking | -11 -10 -9 -8 -7 -7 -6 -6 -6 --------- Run | Jun Mat Mat Mat Fac DSF Fac Was Fac Machines Accessed 8 | . . . . 1 . 2 . 5 Terminals 4 | . . . . 1 . 1 . 2 Fabricators 4 | . . . . . . 1 . 3 Repair Stations . | . . . . . . . . . Recycling Units . | . . . . . . . . . Scanalyzers . | . . . . . . . . . Garrison Access . | . . . . . . . . . Total Hacks 12 | . . . . 1 . 2 . 9 Successful 6 | . . . . 1 . 1 . 4 Failed 6 | . . . . . . 1 . 5 Catastrophic 2 | . . . . . . 1 . 1 Database Lockouts . | . . . . . . . . . Manual 9 | . . . . . . 2 . 7 Terminals 7 | . . . . 1 . 1 . 5 Fabricators 5 | . . . . . . 1 . 4 Repair Stations . | . . . . . . . . . Recycling Units . | . . . . . . . . . Scanalyzers . | . . . . . . . . . Garrison Access . | . . . . . . . . . Terminal Hacks 1 | . . . . 1 . . . . Open DSF 1 | . . . . 1 . . . . Fabricator Hacks . | . . . . . . . . . Repair Station Hacks . | . . . . . . . . . Recycling Unit Hacks . | . . . . . . . . . Scanalyzer . | . . . . . . . . . Garrison Access Hacks . | . . . . . . . . . Unauthorized Hacks 5 | . . . . . . 1 . 4 Terminals 1 | . . . . . . . . 1 Assimilate 1 | . . . . . . . . 1 Fabricators 4 | . . . . . . 1 . 3 Liberate 1 | . . . . . . 1 . . Overload 3 | . . . . . . . . 3 Repair Stations . | . . . . . . . . . Recycling Units . | . . . . . . . . . Scanalyzers . | . . . . . . . . . Garrison Access . | . . . . . . . . . Data Cores Recovered . | . . . . . . . . . Used . | . . . . . . . . . Hacking Detections 4 | . . . . . . 2 . 2 Full Trace Events 2 | . . . . . . . . 2 Feedback Events 1 | . . . . . . . . 1 Corruption 1 | . . . . . . . . 1 Feedback Blocked . | . . . . . . . . . Robot Schematics Acquired . | . . . . . . . . . Robots Built . | . . . . . . . . . Authchips . | . . . . . . . . . Time . | . . . . . . . . . Total Robot Build Rating . | . . . . . . . . . Part Schematics Acquired . | . . . . . . . . . Parts Built . | . . . . . . . . . Authchips . | . . . . . . . . . Time . | . . . . . . . . . Total Part Build Rating . | . . . . . . . . . Parts Repaired . | . . . . . . . . . Time . | . . . . . . . . . Parts Recycled . | . . . . . . . . . Recycled Matter . | . . . . . . . . . Retrieved Matter . | . . . . . . . . . Retrieved Components . | . . . . . . . . . Parts Scanalyzed . | . . . . . . . . . Part Schematics Acquired . | . . . . . . . . . Parts Damaged . | . . . . . . . . . Bothacking | -11 -10 -9 -8 -7 -7 -6 -6 -6 ------------ Run | Jun Mat Mat Mat Fac DSF Fac Was Fac Used RIF Installer . | . . . . . . . . . Robots Hacked . | . . . . . . . . . Non-combat . | . . . . . . . . . Combat . | . . . . . . . . . Robot Hacks Applied . | . . . . . . . . . Relay Couplers Released . | . . . . . . . . . Fabnet Peak Effective % . | . . . . . . . . . Robots Rewired . | . . . . . . . . . Allies Hacked . | . . . . . . . . . Hacks Repelled . | . . . . . . . . . Allies | -11 -10 -9 -8 -7 -7 -6 -6 -6 -------- Run | Jun Mat Mat Mat Fac DSF Fac Was Fac Total Allies . | . . . . . . . . . Largest Group . | . . . . . . . . . Highest-Rated Group . | . . . . . . . . . Highest-Rated Ally . | . . . . . . . . . Total Orders . | . . . . . . . . . Ally Attacks . | . . . . . . . . . Total Damage . | . . . . . . . . . Kills . | . . . . . . . . . Allies Corrupted . | . . . . . . . . . Allies Melted . | . . . . . . . . . Intel | -11 -10 -9 -8 -7 -7 -6 -6 -6 ------- Run | Jun Mat Mat Mat Fac DSF Fac Was Fac Robot Analysis Total . | . . . . . . . . . Derelict Logs Recovered . | . . . . . . . . . Drone Launches . | . . . . . . . . . Drone Recoveries . | . . . . . . . . . Exploration | -11 -10 -9 -8 -7 -7 -6 -6 -6 ------------- Run | Jun Mat Mat Mat Fac DSF Fac Was Fac Turns Passed 528 | 9 48 47 82 3 15 110 33 181 Spaces Moved 1030 | 18 78 92 164 6 29 219 63 361 Core 1030 | 18 78 92 164 6 29 219 63 361 Treads . | . . . . . . . . . Legs . | . . . . . . . . . Wheels . | . . . . . . . . . Hover . | . . . . . . . . . Flight . | . . . . . . . . . Fastest Speed 50 | 50 50 50 50 50 50 50 50 50 Average Speed 50 | 50 50 50 50 50 50 50 50 50 Slowest Speed 50 | 50 50 50 50 50 50 50 50 50 Overloaded Moves . | . . . . . . . . . Propulsion Burnouts . | . . . . . . . . . Robots Hopped . | . . . . . . . . . Cave-ins Triggered . | . . . . . . . . . Exploration Rate (%) 25 | 3 24 17 28 . 40 9 71 13 Regions Visited 8 Branch Regions . Pre-discovered Areas . | . . . . . . . . . Known Exits Taken 1 | . . . . 1 . . . . Unknown Exits Taken 4 | 1 1 1 1 . . . . . Scrap Searched . | . . . . . . . . . Spaces Dug . | . . . . . . . . . Terrain Destroyed . | . . . . . . . . . Melee . | . . . . . . . . . Projectile . | . . . . . . . . . AOE . | . . . . . . . . . Terrain Rammed . | . . . . . . . . . Walls Destroyed . | . . . . . . . . . Machines Disabled . | . . . . . . . . . Actions | -11 -10 -9 -8 -7 -7 -6 -6 -6 --------- Run | Jun Mat Mat Mat Fac DSF Fac Was Fac Total 1034 | 17 86 92 163 5 28 219 63 361 Wait 1 | . . . . . . . 1 . Move 1023 | 17 77 91 163 5 28 219 62 361 Hop . | . . . . . . . . . Pick Up . | . . . . . . . . . Fast Attach . | . . . . . . . . . Attach . | . . . . . . . . . Detach . | . . . . . . . . . Swap . | . . . . . . . . . Drop . | . . . . . . . . . Fire . | . . . . . . . . . Melee . | . . . . . . . . . Ram 10 | . 9 1 . . . . . . Kick . | . . . . . . . . . Crush . | . . . . . . . . . Escape Stasis . | . . . . . . . . . Rewire . | . . . . . . . . . Trap . | . . . . . . . . . Miscellaneous . | . . . . . . . . . Route ------- -11/Junkyard -10/Materials -9/Materials -8/Materials -7/Factory -7/DSF -6/Factory -6/Waste -6/Factory History --------- Turn | Location | Event 2 | -11/Junkyard | Discovered new exit (range 16) 10 | -11/Junkyard | Entered Materials 56 | -10/Materials | Core integrity fell below 50% 57 | -10/Materials | Discovered new exit (range 3) 58 | -10/Materials | Entered another Materials area 58 | -9/Materials | Evolved 2 slots: Utility x2 98 | -9/Materials | Discovered new exit (range 16) 105 | -9/Materials | Entered another Materials area 105 | -8/Materials | Evolved 2 slots: Utility x2 183 | -8/Materials | Discovered new exit (range 10) 187 | -8/Materials | Entered Factory 187 | -7/Factory | Evolved 2 slots: Utility x2 189 | -7/Factory | Identified exit to DSF 190 | -7/Factory | Entered DSF 199 | -7/DSF | Discovered new exit (range 12) 205 | -7/DSF | Entered Factory 205 | -6/Factory | Evolved 2 slots: Utility x2 305 | -6/Factory | Build established: Mutant 315 | -6/Factory | Sucked down chute 315 | -6/Factory | Entered Waste 324 | -6/Waste | Spotted C-40 Crusher 330 | -6/Waste | EMP discharged 334 | -6/Waste | Spotted C-40 Crusher 334 | -6/Waste | Spotted C-40 Crusher 334 | -6/Waste | Spotted C-40 Crusher 334 | -6/Waste | Spotted C-40 Crusher 340 | -6/Waste | Discovered new exit (range 16) 340 | -6/Waste | Spotted C-40 Crusher 348 | -6/Waste | Entered Factory 438 | -6/Factory | Core integrity fell below 50% 520 | -6/Factory | Core integrity fell below 20% 529 | -6/Factory | Destroyed by H-66 Slayer with Gauss Rifle Last Messages --------------- 00463_ The floor emits a surge of raw power. 00463_ System corrupted (+2). 00470_ Connecting with Fabricator... >>Force(Overload) EM_IMPRINTER_OVERLOAD 00470_ ALERT: Suspicious activity at Fabricator F006. Dispatching Investigation squad. 00480_ Connecting with Fabricator... >>Force(Overload) EM_IMPRINTER_OVERLOAD 00480_ ALERT: Suspicious activity at Fabricator F002. Dispatching Investigation squad. 00485_ IND8PSSG6NQU6/L&VUVSAWIG5JC DJ 00493_ K-01 Serf collects debris. 00503_ System corrupted: Energy discharge (-29). 00525_ K5FH>JK 3V:A